bitfinex/quotes_ETHUSD_20251006
["timestamp","ask_amount","ask_price","bid_price","bid_amount"]
[1759731754948,5.09803843,4544.9,4544.8,0.001]
[1759731755156,5.55843843,4544.9,4544.8,0.001]
[1759731756896,5.09803843,4544.9,4544.8,0.001]
[1759731757096,5.55843843,4544.9,4544.8,0.001]
[1759731758375,3.35817,4544.9,4544.8,0.001]
[1759731758881,2.89677,4544.9,4544.8,0.001]
[1759731759061,2.5934,4544.9,4544.8,0.001]
[1759731760448,0.1104,4544.9,4544.8,0.001]
[1759731760648,0.1104,4544.9,4544.8,2.8325]
[1759731761078,0.1104,4544.9,4544.8,2.401]
[1759731762877,0.1104,4544.9,4544.8,16.901]
[1759731765784,0.1104,4544.9,4544.8,2.401]
[1759731774872,0.1104,4544.9,4544.8,2.8325]
[1759731775199,0.1104,4544.9,4544.8,5.03281684]
[1759731775761,0.1104,4544.9,4544.8,2.8325]
[1759731775973,0.1104,4544.9,4544.8,17.3325]
[1759731777890,0.1104,4544.9,4544.8,16.901]
[1759731781104,0.1104,4544.9,4544.8,19.53281684]
[1759731782406,0.1124,4545.2,4544.9,4.6002344]
[1759731782608,0.1124,4545.2,4545.0,0.0220022]
[1759731782812,0.1124,4545.2,4545.1,0.448]
[1759731783125,0.002,4545.2,4545.1,19.54817161]
[1759731783406,0.002,4545.2,4545.1,22.87770975]
[1759731784202,0.002,4545.2,4545.1,21.71666342]
[1759731784412,0.002,4545.2,4545.1,24.19966342]
[1759731789015,0.002,4545.2,4545.1,19.06849181]
[1759731789225,0.002,4545.2,4545.1,21.55149181]
[1759731789493,0.002,4545.2,4545.1,23.75166342]
[1759731790021,0.002,4545.2,4545.1,24.19966342]
[1759731790728,0.002,4545.2,4545.1,21.99949181]
[1759731790923,0.002,4545.2,4545.1,24.19966342]
[1759731791094,0.002,4545.2,4545.1,24.31006342]
[1759731792300,0.002,4545.2,4545.1,24.58169417]
[1759731792501,0.002,4545.2,4545.1,54.13369417]
[1759731792826,0.002,4545.2,4545.1,54.58169417]
[1759731796029,0.002,4545.2,4545.1,54.58269417]
[1759731797401,0.002,4545.2,4545.1,55.21629417]
[1759731799347,0.002,4545.2,4545.1,35.27229417]
[1759731799554,0.002,4545.2,4545.1,27.26389181]
[1759731799847,0.4319,4545.2,4545.1,0.001]
[1759731800437,0.4319,4545.2,4545.1,2.401]
[1759731809943,0.4319,4545.2,4544.6,0.001]
[1759731809944,9.25003134,4545.2,4544.6,0.001]
[1759731810135,2.20036526,4544.7,4544.6,0.001]
[1759731810334,5.36807618,4544.4,4543.8,0.001]
[1759731810554,2.68884577,4544.4,4543.8,0.001]
[1759731810763,0.20584577,4544.4,4543.8,0.001]
[1759731811068,0.4299,4544.7,4543.9,2.20071493]
[1759731811231,2.63027328,4544.7,4544.0,0.02200704]
[1759731811548,0.4299,4544.6,4544.3,0.02300558]
[1759731811753,0.4299,4544.6,4544.3,0.001]
[1759731812149,0.4299,4544.5,4544.3,0.001]
[1759731812660,2.20051051,4544.4,4544.3,0.001]
[1759731813047,3.38399512,4544.4,4544.3,0.001]
[1759731816434,1.18348461,4544.4,4544.3,0.001]
[1759731816774,3.16756567,4544.9,4544.3,0.001]
[1759731816775,0.002,4545.2,4544.3,0.001]
[1759731816978,2.483,4544.8,4544.3,0.4645]
[1759731817167,2.483,4544.8,4544.4,0.4855051]
[1759731817374,2.483,4544.8,4544.5,0.4635]
[1759731817755,0.002,4545.2,4544.6,0.02200413]
[1759731818047,2.20022775,4545.0,4544.6,0.02200413]
[1759731818268,2.483,4544.9,4544.6,0.02200413]
[1759731818684,2.483,4544.9,4544.4,0.4635]
[1759731818852,4.68329922,4544.9,4544.3,0.001]
[1759731819383,2.483,4544.9,4544.3,0.001]
[1759731819578,4.6832747,4544.9,4544.3,0.001]
[1759731819766,2.483,4544.9,4544.3,0.001]
[1759731820080,2.31076817,4544.7,4544.3,0.001]
[1759731820578,2.20043158,4544.6,4544.3,0.001]
[1759731820876,2.20043158,4544.6,4544.3,0.4334986]
[1759731821267,2.31078673,4544.7,4544.3,0.4334986]
[1759731821468,0.1104,4544.7,4544.3,0.4334986]
[1759731822063,0.1104,4544.7,4544.3,0.8969986]
[1759731822477,0.1104,4544.7,4544.5,2.4]
[1759731824154,0.1104,4544.7,4544.6,0.4635]
[1759731824872,0.1104,4544.7,4544.6,0.48550413]
[1759731825195,0.1104,4544.7,4544.6,17.3635]
[1759731825774,0.1104,4544.7,4544.6,16.9]
[1759731827407,0.002,4545.2,4544.6,16.9]
[1759731827408,0.1124,4545.2,4544.7,2.4]
[1759731827588,0.1124,4545.2,4544.8,2.22231799]
[1759731827893,2.76405556,4545.2,4544.7,2.4]
[1759731828092,0.5639,4545.2,4544.7,2.4]
[1759731828286,2.20019499,4545.1,4544.7,2.4]
[1759731828485,2.76403305,4545.2,4544.7,2.4]
[1759731829497,0.1124,4545.2,4544.7,2.4]
[1759731829698,0.1124,4545.2,4544.7,2.8635]
[1759731830193,0.1124,4545.2,4544.8,0.4635]
[1759731830772,0.1124,4545.2,4545.0,2.4]
[1759731831172,0.1124,4545.2,4544.8,0.4635]
[1759731831369,0.1124,4545.2,4544.9,0.4635]
[1759731831807,0.1124,4545.2,4545.1,2.4]
[1759731833911,2.3125232,4545.2,4545.1,2.4]
[1759731834080,0.1124,4545.2,4545.1,2.4]
[1759731834385,2.5954,4545.2,4545.1,2.4]
[1759731834785,2.5954,4545.2,4544.7,0.4635]
[1759731835294,2.5954,4545.2,4544.9,2.4]
[1759731835691,2.5954,4545.2,4544.7,0.4635]
[1759731836087,2.5954,4545.2,4544.9,2.4]
[1759731836602,2.5954,4545.2,4544.7,0.4635]
[1759731837012,2.5954,4545.2,4544.9,2.4]
[1759731837400,0.1124,4545.2,4544.6,2.4]
[1759731837602,2.5954,4545.2,4545.1,2.4]
[1759731837911,0.1124,4545.2,4545.1,17.3635]
[1759731838113,0.1124,4545.2,4545.1,16.9]
[1759731841283,0.1124,4545.2,4545.1,2.4]
[1759731841686,0.1124,4545.2,4545.1,19.10017161]
[1759731841888,0.002,4545.2,4545.1,19.56367161]
[1759731842822,0.002,4545.2,4545.1,17.3635]
[1759731843594,0.002,4545.2,4545.1,19.56367161]
[1759731843825,0.002,4545.2,4545.1,17.3635]
[1759731844038,0.002,4545.2,4545.1,19.56367161]
[1759731845023,0.002,4545.2,4545.1,20.27226366]
[1759731845333,0.002,4545.2,4545.1,20.38266366]
[1759731845493,0.002,4545.2,4545.1,21.55025389]
[1759731846404,0.002,4545.2,4545.1,19.35008228]
[1759731847145,0.002,4545.2,4545.1,21.55025389]
[1759731847518,0.002,4545.2,4545.1,24.03225389]
[1759731847857,0.002,4545.2,4545.1,22.86466366]
[1759731848359,0.002,4545.2,4545.1,20.66449205]
[1759731848535,0.002,4545.2,4545.1,17.71099205]
[1759731848721,0.002,4545.2,4545.1,20.38266366]
[1759731850849,0.002,4545.2,4545.1,50.63979441]
[1759731852877,0.002,4545.2,4545.1,51.27339441]
[1759731853039,0.002,4545.2,4545.1,51.16299441]
[1759731859688,0.002,4545.2,4545.1,50.69149441]
[1759731860001,0.002,4545.2,4545.1,47.60059205]
[1759731860157,0.4342,4545.2,4545.1,44.5]
[1759731860484,0.4342,4545.2,4545.1,14.5]
[1759731860865,0.4342,4545.2,4545.1,16.9]
[1759731861099,2.6343232,4545.2,4545.1,14.5]
[1759731861268,2.20021436,4545.1,4544.6,0.001]
[1759731861472,2.20023648,4545.0,4544.6,0.001]
[1759731861694,2.63243648,4545.0,4544.6,0.001]
[1759731861860,0.4322,4545.0,4544.6,0.001]
[1759731862196,2.20036526,4544.7,4544.6,0.001]
[1759731862395,2.68364863,4544.7,4544.6,0.001]
[1759731862583,3.11584863,4544.7,4544.6,0.001]
[1759731862959,3.22624863,4544.7,4544.6,0.001]
[1759731865572,1.02588337,4544.7,4544.6,0.001]
[1759731865900,3.0246,4544.7,4544.6,0.001]
[1759731866084,0.002,4545.0,4544.6,0.001]
[1759731866289,0.4322,4544.9,4544.6,0.001]
[1759731866488,0.4322,4544.8,4544.6,0.001]
[1759731866672,0.4322,4544.7,4544.6,0.001]
[1759731866876,0.002,4545.0,4544.6,2.42300413]
[1759731867082,0.002,4545.0,4544.7,2.20036526]
[1759731867381,0.002,4545.0,4544.8,0.02200316]
[1759731867583,0.4342,4545.0,4544.9,14.5]
[1759731868374,0.002,4545.0,4544.9,14.5]
[1759731870306,0.002,4545.0,4544.9,19.10026843]
[1759731870504,0.002,4545.0,4544.9,49.10026843]
[1759731870674,0.002,4545.0,4544.9,51.98096823]
[1759731871899,0.002,4545.0,4544.9,51.70193055]
[1759731873506,0.002,4545.0,4544.9,54.18393055]
[1759731876100,0.002,4545.0,4544.9,54.29433055]
[1759731876605,0.002,4545.0,4544.9,54.57336823]
[1759731877810,0.002,4545.0,4544.9,55.73838656]
[1759731878202,0.002,4545.0,4544.9,54.57336823]
[1759731878613,0.002,4545.0,4544.9,55.73838656]
[1759731881214,0.002,4545.0,4544.9,53.06661813]
[1759731881512,0.002,4545.0,4544.9,52.50584888]
[1759731881712,0.002,4545.0,4544.9,53.82283055]
[1759731882081,0.002,4545.0,4544.9,51.61986823]
[1759731882386,0.002,4545.0,4544.9,54.10186823]
[1759731884283,0.002,4545.0,4544.9,55.26688656]
[1759731887317,0.002,4545.0,4544.9,54.10186823]
[1759731889106,0.002,4545.0,4544.9,54.56636823]
[1759731890715,0.002,4545.0,4544.9,54.10186823]
[1759731892339,0.002,4545.0,4544.9,53.82283055]
[1759731896611,0.002,4545.0,4544.9,54.92093055]
[1759731897033,0.002,4545.0,4544.9,56.47521977]
[1759731898340,0.002,4545.0,4544.9,54.92093055]
[1759731900036,0.002,4545.0,4544.9,55.19996823]
[1759731903190,0.002,4545.0,4544.9,54.92093055]
[1759731903653,0.002,4545.0,4544.9,54.45643055]
[1759731904729,0.002,4545.0,4544.9,24.45643055]
[1759731905052,1e-08,4545.2,4545.1,5.23377161]
[1759731905352,1e-08,4545.2,4545.1,39.88426342]
[1759731905653,1e-08,4545.2,4545.1,56.79867897]
[1759731905959,1e-08,4545.2,4545.1,57.07771665]
[1759731906967,1e-08,4545.2,4545.1,54.59571665]
[1759731907164,1e-08,4545.2,4545.1,57.07771665]
[1759731907466,1e-08,4545.2,4545.1,55.1355011]
[1759731908544,1e-08,4545.2,4545.1,54.6623011]
[1759731908858,1e-08,4545.2,4545.1,54.38326342]
[1759731909672,1e-08,4545.2,4545.1,54.85546342]
[1759731910440,1e-08,4545.2,4545.1,55.1345011]
[1759731914350,1e-08,4545.2,4545.1,54.38326342]
[1759731914557,1e-08,4545.2,4545.1,36.66966342]
[1759731914758,0.46050001,4545.2,4545.1,32.29317161]
[1759731914956,0.46050001,4545.2,4545.1,34.99957161]
[1759731915280,0.46050001,4545.2,4545.1,37.39957161]
[1759731915977,1e-08,4545.2,4545.1,51.69157161]
[1759731916761,1e-08,4545.2,4545.1,51.69257161]
[1759731917587,1e-08,4545.2,4545.1,41.76057161]
[1759731920258,1e-08,4545.2,4545.1,43.92906342]
[1759731921458,1e-08,4545.2,4545.1,44.2081011]
[1759731922484,1e-08,4545.2,4545.1,54.1401011]
[1759731922682,1e-08,4545.2,4545.1,54.6123011]
[1759731923386,1e-08,4545.2,4545.1,54.96686342]
[1759731926452,1e-08,4545.2,4545.1,24.96686342]
[1759731926984,1e-08,4545.2,4545.1,54.96686342]
[1759731929061,1e-08,4545.2,4545.1,54.49466342]
[1759731929594,1e-08,4545.2,4545.1,52.01366342]
[1759731929799,1e-08,4545.2,4545.1,54.49466342]
[1759731931684,1e-08,4545.2,4545.1,54.96686342]
[1759731931999,1e-08,4545.2,4545.1,55.2459011]
[1759731932201,1e-08,4545.2,4545.1,54.7737011]
[1759731932389,0.002,4545.8,4545.1,54.7737011]
[1759731932390,1e-08,4545.9,4545.8,2.83343281]
[1759731932588,1e-08,4545.9,4545.8,38.12506881]
[1759731932787,1e-08,4545.9,4545.8,38.53117049]
[1759731933892,1e-08,4545.9,4545.8,52.75213281]
[1759731935071,0.4605,4546.6,4545.8,52.75213281]
[1759731935269,1e-08,4546.3,4546.2,5.23323925]
[1759731935492,1e-08,4546.3,4546.2,37.71423925]
[1759731935703,1e-08,4546.3,4546.2,52.21423925]
[1759731938607,1e-08,4546.3,4546.2,52.64664507]
[1759731939814,0.47300001,4546.3,4546.2,52.64664507]
[1759731940012,0.47300001,4546.3,4546.2,54.81513688]
[1759731941319,1e-08,4546.3,4546.2,54.81513688]
[1759731941530,1e-08,4546.3,4546.2,55.51606754]
[1759731941821,1e-08,4546.3,4546.2,55.25583688]
[1759731944727,1e-08,4546.3,4546.2,55.53487456]
[1759731944931,1e-08,4546.3,4546.2,55.79510522]
[1759731945115,0.473,4547.9,4546.7,0.6336]
[1759731945298,0.473,4547.9,4547.6,4.5989395]
[1759731945496,2.1980573,4549.5,4547.9,2.19881703]
[1759731945497,2.19823004,4549.2,4547.9,2.19881703]
[1759731945697,2.41806668,4549.1,4548.2,2.19866445]
[1759731946019,2.6712901,4549.0,4548.3,0.02198623]
[1759731946186,0.473,4549.0,4548.3,0.02198623]
[1759731946382,2.67129815,4549.0,4548.3,0.02198623]
[1759731946630,0.473,4549.0,4548.4,14.5]
[1759731946796,2.198435,4548.7,4548.4,14.5]
[1759731946994,0.473,4548.6,4548.4,14.5]
[1759731947189,0.473,4548.5,4548.4,14.5]
[1759731950985,0.475,4548.5,4548.4,14.5]
[1759731951389,0.002,4548.5,4548.4,14.5]
[1759731951588,0.002,4548.5,4548.4,49.72389929]
[1759731951794,0.002,4548.5,4548.4,53.53842995]
[1759731951991,0.473,4550.2,4549.8,2.19789595]
[1759731952219,0.473,4550.1,4549.9,0.0219785]
[1759731952432,0.473,4550.1,4549.9,2.4219785]
[1759731952597,2.46,4551.8,4550.1,2.19775389]
[1759731952798,0.842,4551.1,4550.1,2.42197753]
[1759731953000,0.473,4551.0,4550.1,0.02197753]
[1759731953644,2.19737915,4550.9,4550.3,2.4]
[1759731953806,0.473,4550.8,4550.3,2.42197657]
[1759731954004,0.473,4550.7,4550.3,0.02197657]
[1759731954192,0.473,4550.7,4550.0,2.4]
[1759731954397,0.473,4550.6,4550.2,2.4]
[1759731954909,0.473,4550.5,4550.0,2.4]
[1759731955126,0.473,4550.5,4550.0,2.83991204]
[1759731955435,0.473,4550.4,4550.2,2.4]
[1759731955624,0.473,4550.3,4550.2,2.4]
[1759731955849,0.473,4550.3,4549.9,2.48]
[1759731956361,0.473,4550.3,4550.2,16.9]
[1759731957130,0.473,4550.6,4550.3,2.4]
[1759731957331,2.19737108,4550.9,4550.3,2.42197657]
[1759731957530,0.72963711,4550.8,4550.3,2.42197657]
[1759731957837,0.473,4550.7,4550.3,2.42197657]
[1759731958037,0.473,4550.6,4550.3,2.42197657]
[1759731958237,0.473,4550.5,4550.3,2.42197657]
[1759731958425,0.36225947,4550.5,4550.3,2.42197657]
[1759731959034,2.19737477,4550.9,4550.3,2.42197657]
[1759731959238,0.25663748,4550.8,4550.3,2.42197657]
[1759731959468,2.4540571,4550.8,4550.3,2.42197657]
[1759731959631,2.45405465,4550.8,4550.3,2.42197657]
[1759731959963,0.25663748,4550.8,4548.4,0.34628629]
[1759731960129,2.19731927,4551.0,4549.1,2.19823465]
[1759731960322,0.369,4551.1,4549.1,2.19823465]
[1759731960323,2.19776178,4550.1,4549.3,2.4]
[1759731960525,0.369,4551.1,4549.5,2.4]
[1759731960526,0.473,4550.0,4549.5,2.4]
[1759731960722,0.473,4549.9,4549.5,2.84598242]
[1759731961136,2.19746128,4550.8,4549.6,43.24179508]
[1759731961344,0.473,4550.7,4549.7,46.9]
[1759731961531,0.1096,4550.4,4549.9,4.5978455]
[1759731961868,0.1096,4551.0,4550.4,2.19759285]
[1759731962079,0.1096,4551.0,4550.4,4.67759285]
[1759731962227,0.1096,4551.0,4550.4,4.67760238]
[1759731962428,0.1096,4551.0,4550.5,14.5]
[1759731963047,0.5634,4551.0,4550.5,14.5]
[1759731963461,0.1096,4551.0,4550.5,14.5]
[1759731964462,0.5634,4551.0,4550.5,14.5]
[1759731965082,0.1096,4551.0,4550.6,2.48]
[1759731965655,0.1096,4551.0,4550.7,14.5]
[1759731967118,2.64618203,4551.0,4550.5,0.29911513]
[1759731967291,2.19751557,4550.6,4550.3,0.1096]
[1759731967585,0.4538,4550.9,4550.3,0.1096]
[1759731967751,2.1975607,4550.5,4550.4,16.9]
[1759731967952,2.6513607,4550.5,4550.4,2.4]
[1759731968183,3.14720318,4550.5,4550.4,2.4]
[1759731968784,2.69340318,4550.5,4550.4,2.4]
[1759731968990,2.1975607,4550.5,4550.4,2.4]
[1759731969356,0.1096,4550.6,4550.4,2.4]
[1759731970996,0.1096,4550.6,4550.5,14.5]
[1759731970997,2.30711241,4550.6,4550.5,14.5]
[1759731971370,2.76091241,4550.6,4550.5,14.5]
[1759731971574,0.369,4551.1,4550.4,2.4]
[1759731971793,0.1096,4550.9,4550.5,0.4826756]
[1759731972114,0.1096,4551.1,4550.6,15.25981513]
[1759731972307,0.1096,4551.1,4550.7,2.479]
[1759731973005,0.1096,4551.1,4550.8,14.5]
[1759731974501,0.1096,4551.1,4550.8,14.9607]
[1759731975040,0.1096,4551.1,4550.8,14.5]
[1759731975317,2.46,4551.2,4551.1,2.19727098]
[1759731975505,2.46,4551.2,4551.1,2.21924368]
[1759731975706,2.46,4551.2,4551.1,2.67994368]
[1759731976021,2.46,4551.2,4551.1,0.4607]
[1759731976506,2.46,4551.2,4551.1,2.65797098]
[1759731976817,2.46,4551.2,4551.1,37.55894368]
[1759731976992,2.46,4551.2,4551.1,37.53697098]
[1759731977197,2.46,4551.2,4551.1,35.3397]
[1759731978094,2.46,4551.2,4551.1,37.53697098]
[1759731978501,2.46,4551.2,4551.1,35.3397]
[1759731978700,2.46,4551.2,4551.1,7.53697098]
[1759731978900,2.46,4551.2,4551.1,22.03697098]
[1759731979098,2.46,4551.2,4551.1,53.6814155]
[1759731979297,1e-08,4551.2,4551.1,53.94164616]
[1759731979511,1.23,4551.4,4551.3,0.6336]
[1759731979512,1e-08,4551.4,4551.3,0.6336]
[1759731979703,1e-08,4551.4,4551.3,38.17047443]
[1759731980103,1e-08,4551.4,4551.3,52.67047443]
[1759731980302,15.58832301,4551.9,4551.8,0.6336]
[1759731980509,15.58832301,4551.9,4551.8,6.67263263]
[1759731980709,15.58832301,4551.9,4551.8,39.33026571]
[1759731980932,15.58832301,4551.9,4551.8,54.12938084]
[1759731981141,15.58832301,4551.9,4551.8,52.96934821]
[1759731981337,0.4638,4553.9,4552.2,3.0336]
[1759731981523,0.4638,4553.9,4552.3,48.00840691]
[1759731981727,0.4638,4553.9,4552.3,38.46910691]
[1759731981923,0.4638,4553.9,4552.3,52.96910691]
[1759731982303,0.01,4553.9,4552.3,52.96910691]
[1759731984020,0.4538,4553.8,4552.3,52.96910691]
[1759731984903,0.005,4552.4,4552.3,52.96910691]
[1759731985105,0.005,4552.4,4552.3,54.13572403]
[1759731985429,0.005,4552.4,4552.3,48.70021712]
[1759731985633,0.005,4552.4,4552.3,53.3749089]
[1759731985802,0.005,4552.4,4552.3,23.8356089]
[1759731986217,0.005,4552.4,4552.3,24.13472403]
[1759731986418,0.005,4552.4,4552.3,54.13472403]
[1759731986747,0.005,4552.4,4552.3,51.93803225]
[1759731987118,0.005,4552.4,4552.3,49.46003225]
[1759731987341,0.005,4552.4,4552.3,51.93803225]
[1759731987648,0.005,4552.4,4552.3,49.46003225]
[1759731987824,0.005,4552.4,4552.3,51.65672403]
[1759731988146,0.005,4552.4,4552.3,54.13472403]
[1759731989333,0.005,4552.4,4552.3,54.24432403]
[1759731989528,0.005,4552.4,4552.3,51.76632403]
[1759731989817,0.005,4552.4,4552.3,54.24432403]
[1759731990331,0.005,4552.4,4552.3,53.78362403]
[1759731990650,0.005,4552.4,4552.3,51.30562403]
[1759731990838,0.005,4552.4,4552.3,53.78362403]
[1759731991041,0.005,4552.4,4552.3,51.30562403]
[1759731991242,0.005,4552.4,4552.3,54.24432403]
[1759731993157,0.005,4552.4,4552.3,52.04763225]
[1759731993477,0.005,4552.4,4552.3,54.24432403]
[1759731994583,0.005,4552.4,4552.3,51.58693225]
[1759731995096,0.4416,4552.4,4552.3,14.5]
[1759731995296,2.63824352,4552.4,4552.3,14.5]
[1759731995598,2.63824352,4552.4,4552.3,16.9]
[1759731995757,2.63824352,4552.4,4552.3,14.5]
[1759731997257,2.63824352,4552.4,4552.3,16.9]
[1759731997457,3.122025,4552.4,4552.3,16.9]
[1759731998884,3.122025,4552.4,4551.8,0.001]
[1759731998885,0.92538148,4552.4,4551.8,0.001]
[1759731999184,2.19688481,4551.9,4551.8,0.001]
[1759731999800,2.63348481,4551.9,4551.8,0.001]
[1759732001279,3.11651254,4551.9,4551.8,0.001]
[1759732001771,2.68545817,4552.4,4551.8,0.001]
[1759732001772,0.005,4552.4,4551.8,0.001]
[1759732001971,2.19679022,4552.1,4551.8,0.001]
[1759732002207,0.4366,4552.0,4551.8,0.001]
[1759732002403,2.19688481,4551.9,4551.8,0.001]
[1759732002900,2.63348481,4551.9,4551.8,0.001]
[1759732005114,2.74308481,4551.9,4551.8,0.001]
[1759732005410,0.005,4552.4,4551.8,0.30011513]
[1759732005591,0.005,4552.4,4551.9,4.89996884]
[1759732005793,0.005,4552.4,4551.9,2.478]
[1759732006090,0.005,4552.4,4551.8,0.30011513]
[1759732006091,2.19681141,4552.1,4551.8,0.001]
[1759732006406,2.19688481,4551.9,4551.8,0.001]
[1759732007012,2.63348481,4551.9,4551.8,0.001]
[1759732007985,2.19688481,4551.9,4551.8,0.001]
[1759732009006,2.19683729,4552.0,4551.8,0.001]
[1759732009393,2.63334501,4552.2,4551.8,0.001]
[1759732009819,0.4366,4552.2,4551.8,0.001]
[1759732010119,0.4366,4552.1,4551.8,0.001]
[1759732010415,2.63339317,4552.1,4551.8,0.001]
[1759732010915,2.19688481,4551.9,4551.8,0.001]
[1759732011318,2.63348481,4551.9,4551.8,0.001]
[1759732013888,2.19688481,4551.9,4551.8,0.001]
[1759732014090,0.005,4552.4,4551.8,0.001]
[1759732014719,2.20164789,4552.4,4551.8,0.001]
[1759732014890,2.19678297,4552.2,4551.8,0.001]
[1759732015221,2.20164783,4552.4,4551.8,0.001]
[1759732015527,0.1096,4551.9,4551.8,0.001]
[1759732016034,2.30648481,4551.9,4551.8,0.001]
[1759732016247,0.1096,4551.9,4551.8,0.001]
[1759732016408,2.19683182,4552.1,4551.8,2.482]
[1759732016748,2.19683938,4552.0,4551.8,2.482]
[1759732017315,2.19683938,4552.0,4551.9,16.9]
[1759732017805,2.30638829,4552.1,4552.0,2.4]
[1759732018643,2.74298829,4552.1,4552.0,2.4]
[1759732019049,0.5462,4552.1,4552.0,2.4]
[1759732019234,0.1096,4552.1,4552.0,2.4]
[1759732019444,0.1096,4552.1,4551.8,0.001]
[1759732019606,2.19687845,4552.0,4551.8,0.001]
[1759732019806,2.19687845,4552.0,4551.9,2.4]
[1759732020238,0.1096,4552.1,4551.9,2.4]
[1759732020536,2.30639592,4552.1,4551.9,2.4]
[1759732020739,0.002,4552.0,4551.9,2.4]
[1759732021046,0.002,4552.0,4551.9,5.20208397]
[1759732021247,0.002,4552.0,4551.9,5.64771513]
[1759732022070,0.002,4552.0,4551.9,5.18011513]
[1759732022540,0.002,4552.0,4551.9,5.64771513]
[1759732022714,0.002,4552.0,4551.9,6.1561812]
[1759732022911,0.002,4552.0,4551.9,6.2657812]
[1759732023537,0.002,4552.0,4551.9,6.2448812]
[1759732023938,0.002,4552.0,4551.9,38.44176601]
[1759732024359,0.002,4552.0,4551.9,22.94176601]
[1759732024558,0.002,4552.0,4551.9,52.94176601]
[1759732025474,0.002,4552.0,4551.9,53.57536601]
[1759732025843,0.002,4552.0,4551.9,53.46576601]
[1759732026173,0.012,4552.9,4552.0,0.6336]
[1759732026483,0.012,4552.9,4552.8,5.23005053]
[1759732026781,0.012,4552.9,4552.8,22.76939632]
[1759732026940,0.012,4552.9,4552.8,50.75941513]
[1759732027138,0.012,4552.9,4552.8,53.06376172]
[1759732028372,0.012,4552.9,4552.8,53.976129]
[1759732028544,0.012,4552.9,4552.8,56.14462081]
[1759732028741,0.012,4552.9,4552.8,51.36027422]
[1759732029043,0.012,4552.9,4552.8,33.86960694]
[1759732029351,0.012,4552.9,4552.8,25.65560694]
[1759732029560,0.012,4552.9,4552.8,28.14297497]
[1759732029879,0.012,4552.9,4552.8,22.76248316]
[1759732030246,0.012,4552.9,4552.8,25.40563369]
[1759732030442,0.012,4552.9,4552.8,53.18263369]
[1759732031095,0.012,4552.9,4552.8,50.98618316]
[1759732031378,0.012,4552.9,4552.8,53.0070901]
[1759732031954,0.012,4552.9,4552.8,55.20354063]
[1759732032286,0.012,4552.9,4552.8,54.49075747]
[1759732032481,0.012,4552.9,4552.8,55.12435747]
[1759732035684,0.012,4552.9,4552.8,55.38458813]
[1759732036161,0.012,4552.9,4552.8,55.49418813]
[1759732036553,1e-08,4552.9,4552.8,56.48080962]
[1759732036758,0.01,4553.9,4553.8,5.2295682]
[1759732036996,0.01,4553.9,4553.8,2.4]
[1759732037180,0.4549,4553.9,4553.8,2.4]
[1759732037496,0.4549,4553.9,4553.8,16.9]
[1759732039780,2.65081998,4553.9,4553.8,16.9]
[1759732039980,0.4549,4553.9,4553.8,16.9]
[1759732040308,0.4569,4553.9,4553.8,2.4]
[1759732040812,0.012,4553.9,4553.8,2.4]
[1759732041011,0.012,4553.9,4553.8,16.9]
[1759732041609,0.4569,4553.9,4553.8,16.9]
[1759732042702,2.65281998,4553.9,4553.8,16.9]
[1759732043196,0.4569,4553.9,4553.8,16.9]
[1759732043392,0.4569,4553.9,4553.8,19.378]
[1759732043597,0.4569,4553.9,4553.8,16.9]
[1759732046910,2.65281998,4553.9,4553.8,16.9]
[1759732047502,0.4569,4553.9,4553.8,16.9]
[1759732047809,2.65281998,4553.9,4553.8,16.9]
[1759732048217,3.14864495,4553.9,4553.8,2.4]
[1759732049984,2.19630581,4553.1,4553.0,0.1096]
[1759732050214,0.1096,4553.2,4552.9,2.477]
[1759732051235,0.4449,4553.1,4552.7,1.15762866]
[1759732051388,0.4449,4553.0,4552.6,1.15862866]
[1759732051722,2.64130229,4552.9,4552.6,2.48]
[1759732051932,0.4449,4552.9,4552.6,2.48]
[1759732052131,0.1096,4553.2,4552.6,2.401]
[1759732052343,2.19634585,4553.1,4552.6,4.88]
[1759732052487,2.19640585,4552.9,4552.6,4.88]
[1759732054320,2.30587549,4553.2,4552.6,6.03762866]
[1759732054321,0.1096,4553.2,4552.6,6.03762866]
[1759732054552,0.012,4553.9,4552.7,32.56053164]
[1759732054860,0.1096,4553.5,4553.0,1.15762866]
[1759732055049,0.1096,4553.5,4552.8,0.1096]
[1759732055050,0.1096,4553.2,4552.9,1.15762866]
[1759732055236,2.30585878,4553.2,4552.9,1.15762866]
[1759732056059,2.19631895,4553.1,4552.8,6.03662866]
[1759732056231,2.30585891,4553.2,4552.8,6.03662866]
[1759732057557,2.30585891,4553.2,4552.8,7.06265924]
[1759732057851,0.1096,4553.2,4552.8,7.36177437]
[1759732058055,2.30590066,4553.2,4552.8,7.36177437]
[1759732058348,2.19630658,4553.1,4552.8,6.33574379]
[1759732058560,2.19634167,4553.1,4552.8,6.33574379]
[1759732058765,0.1096,4553.2,4552.8,6.33574379]
[1759732059119,2.19631337,4553.1,4552.8,6.33574379]
[1759732059359,0.1096,4553.2,4552.8,1.45674379]
[1759732059538,0.1096,4553.2,4552.9,2.481]
[1759732059732,2.30586613,4553.2,4552.8,1.45674379]
[1759732059938,2.30586613,4553.2,4552.9,2.481]
[1759732060158,0.1096,4553.2,4552.9,2.481]
[1759732060738,0.1096,4553.2,4552.9,0.4671]
[1759732060936,0.1096,4553.2,4552.9,2.481]